fUST/lending_fUST_20240723
["ID","MTS","AMOUNT","RATE_DAILY","PERIOD"]
[332997907,1721737853047,-505.0,0.00013886,2]
[332997908,1721737853058,-1501.744,0.00013886,2]
[332997909,1721737853068,-4856.49437927,0.000139,2]
[332997910,1721737853077,-601.80885414,0.00013939,2]
[332997911,1721737853087,-2533.69626023,0.00013965,2]
[332997912,1721737853096,-235.84351781,0.00013972,2]
[332997913,1721737853550,-273.37336231,9.9e-05,2]
[332997914,1721737853560,-268.57841417,9.999e-05,2]
[332997915,1721737853571,-623.797104,0.00013699,2]
[332997916,1721737853581,-623.797104,0.00013699,2]
[332997917,1721737853590,-2573.79648219,0.00013972,2]
[332997918,1721737853600,-756.14,0.00013972,2]
[332997919,1721737853610,-500.0,0.00013972,2]
[332997920,1721737853619,-874.06,0.00013972,2]
[332997921,1721737853629,-865.53,0.00013972,2]
[332997922,1721737853639,-3905.52,0.00013972,2]
[332997923,1721737853651,-1779.37,0.00013972,2]
[332997924,1721737853661,-2288.55,0.00013972,2]
[332997925,1721737853671,-500.0,0.00013972,2]
[332997926,1721737853681,-500.0,0.00013972,2]
[332997927,1721737853691,-500.0,0.00013972,2]
[332997928,1721737853702,-500.0,0.00013972,2]
[332997929,1721737853715,-2921.73,0.00013972,2]
[332997930,1721737853724,-4071.18,0.00013972,2]
[332997931,1721737853734,-641.25,0.00013972,2]
[332997932,1721737853744,-500.0,0.00013972,2]
[332997933,1721737853753,-576.53,0.00013972,2]
[332997934,1721737853763,-942.56,0.00013972,2]
[332997935,1721737853773,-426.02,0.00013972,2]
[332997936,1721737853782,-500.0,0.00013972,2]
[332997937,1721737853791,-500.0,0.00013972,2]
[332997938,1721737853800,-500.0,0.00013972,2]
[332997939,1721737853810,-500.0,0.00013972,2]
[332997940,1721737853819,-500.0,0.00013972,2]
[332997941,1721737853829,-860.04,0.00013972,2]
[332997942,1721737853839,-500.0,0.00013972,2]
[332997943,1721737853849,-500.0,0.00013972,2]
[332997944,1721737853860,-1828.4,0.00013972,2]
[332997945,1721737853871,-6287.71,0.00013972,2]
[332997946,1721737853881,-1205.06,0.00013972,2]
[332997947,1721737853890,-500.0,0.00013972,2]
[332997948,1721737853899,-500.0,0.00013972,2]
[332997949,1721737853910,-649.03,0.00013972,2]
[332997950,1721737853920,-500.0,0.00013972,2]
[332997951,1721737853932,-500.0,0.00013972,2]
[332997952,1721737853942,-500.0,0.00013972,2]
[332997953,1721737853951,-500.0,0.00013972,2]
[332997954,1721737853965,-2616.28,0.00013972,2]
[332997955,1721737853975,-500.0,0.00013972,2]
[332997956,1721737853985,-500.0,0.00013972,2]
[332997957,1721737853996,-500.0,0.00013972,2]
[332997958,1721737854008,-500.0,0.00013972,2]
[332997959,1721737854018,-500.0,0.00013972,2]
[332997960,1721737854031,-500.0,0.00013972,2]
[332997961,1721737854040,-241.44,0.00013972,2]
[332997962,1721737854050,-500.0,0.00013972,2]
[332997963,1721737854060,-414.76,0.00013972,2]
[332997964,1721737854069,-226.72,0.00013972,2]
[332997965,1721737854079,-500.0,0.00013972,2]
[332997966,1721737854091,-500.0,0.00013972,2]
[332997967,1721737854101,-500.0,0.00013972,2]
[332997968,1721737854110,-500.0,0.00013972,2]
[332997969,1721737854120,-500.0,0.00013972,2]
[332997970,1721737854130,-500.0,0.00013972,2]
[332997971,1721737854140,-500.0,0.00013972,2]
[332997972,1721737854150,-500.0,0.00013972,2]
[332997973,1721737854162,-500.0,0.00013972,2]
[332997974,1721737854173,-500.0,0.00013972,2]
[332997975,1721737854182,-318.56,0.00013972,2]
[332997976,1721737854192,-500.0,0.00013972,2]
[332997977,1721737854201,-500.0,0.00013972,2]
[332997978,1721737854210,-500.0,0.00013972,2]
[332997979,1721737854221,-500.0,0.00013972,2]
[332997980,1721737854231,-500.0,0.00013972,2]
[332997981,1721737854240,-500.0,0.00013972,2]
[332997982,1721737854250,-500.0,0.00013972,2]
[332997983,1721737854259,-500.0,0.00013972,2]
[332997984,1721737854269,-500.0,0.00013972,2]
[332997985,1721737854280,-687.05,0.00013972,2]
[332997986,1721737854289,-500.0,0.00013972,2]
[332997987,1721737854299,-500.0,0.00013972,2]
[332997988,1721737854309,-500.0,0.00013972,2]
[332997989,1721737854319,-500.0,0.00013972,2]
[332997990,1721737854330,-500.0,0.00013972,2]
[332997991,1721737854342,-515.20716483,0.00013972,2]
[332997992,1721737854351,-500.0,0.00013972,2]
[332997993,1721737854362,-500.0,0.00013972,2]
[332997994,1721737854373,-500.0,0.00013972,2]
[332997995,1721737854383,-619.85,0.00013972,2]
[332997996,1721737854393,-500.0,0.00013972,2]
[332997997,1721737854402,-500.0,0.00013972,2]
[332997998,1721737854411,-500.0,0.00013972,2]
[332997999,1721737854421,-500.0,0.00013972,2]
[332998000,1721737854431,-500.0,0.00013972,2]
[332998001,1721737854441,-500.0,0.00013972,2]
[332998002,1721737854450,-500.0,0.00013972,2]
[332998003,1721737854460,-500.0,0.00013972,2]
[332998004,1721737854471,-500.0,0.00013972,2]
[332998005,1721737854481,-437.8811919,0.00013972,2]
[332998006,1721737854490,-500.0,0.00013972,2]
[332998007,1721737854499,-500.0,0.00013972,2]
[332998008,1721737854509,-397.04356839,0.00013972,2]
[332998009,1721737854519,-500.0,0.00013972,2]
[332998010,1721737854530,-500.0,0.00013972,2]
[332998011,1721737854540,-382.04,0.00013972,2]
[332998012,1721737854549,-500.0,0.00013972,2]
[332998013,1721737854562,-231.27976673,0.00013972,2]
[332998014,1721737854573,-192.29,0.00013972,2]
[332998015,1721737854583,-500.0,0.00013972,2]
[332998016,1721737854593,-500.0,0.00013972,2]
[332998017,1721737854604,-500.0,0.00013972,2]
[332998018,1721737854614,-500.0,0.00013972,2]
[332998019,1721737854624,-500.0,0.00013972,2]
[332998020,1721737854634,-500.0,0.00013972,2]
[332998021,1721737854645,-500.0,0.00013972,2]
[332998022,1721737854655,-500.0,0.00013972,2]
[332998023,1721737854667,-500.0,0.00013972,2]
[332998024,1721737854676,-500.0,0.00013972,2]
[332998025,1721737854686,-500.0,0.00013972,2]
[332998026,1721737854695,-500.0,0.00013972,2]
[332998027,1721737854705,-500.0,0.00013972,2]
[332998028,1721737854716,-581.87,0.00013972,2]
[332998029,1721737854726,-500.0,0.00013972,2]
[332998030,1721737854736,-500.0,0.00013972,2]
[332998031,1721737854746,-500.0,0.00013972,2]
[332998032,1721737854756,-500.0,0.00013972,2]
[332998033,1721737854766,-500.0,0.00013972,2]
[332998034,1721737854775,-500.0,0.00013972,2]
[332998035,1721737854786,-500.0,0.00013972,2]
[332998036,1721737854795,-500.0,0.00013972,2]
[332998037,1721737854805,-500.0,0.00013972,2]
[332998038,1721737854816,-500.0,0.00013972,2]
[332998039,1721737854825,-411.54283891,0.00013972,2]
[332998040,1721737854835,-500.0,0.00013972,2]
[332998041,1721737854845,-500.0,0.00013972,2]
[332998042,1721737854855,-500.0,0.00013972,2]
[332998043,1721737854865,-500.34,0.00013972,2]
[332998044,1721737854875,-500.0,0.00013972,2]
[332998045,1721737854884,-500.0,0.00013972,2]
[332998046,1721737854894,-500.0,0.00013972,2]
[332998047,1721737854913,-571.84,0.00013972,2]
[332998048,1721737854926,-500.0,0.00013972,2]
[332998049,1721737854937,-500.0,0.00013972,2]
[332998050,1721737854947,-500.0,0.00013972,2]
[332998051,1721737854958,-329.00446325,0.00013972,2]
[332998052,1721737854971,-500.0,0.00013972,2]
[332998053,1721737854981,-500.0,0.00013972,2]
[332998054,1721737854991,-500.0,0.00013972,2]
[332998055,1721737855002,-500.0,0.00013972,2]
[332998056,1721737855013,-500.0,0.00013972,2]
[332998057,1721737855023,-500.0,0.00013972,2]
[332998058,1721737855033,-500.0,0.00013972,2]
[332998059,1721737855044,-500.0,0.00013972,2]
[332998060,1721737855054,-500.0,0.00013972,2]
[332998061,1721737855064,-500.0,0.00013972,2]
[332998062,1721737855074,-500.0,0.00013972,2]
[332998063,1721737855084,-500.0,0.00013972,2]
[332998064,1721737855094,-500.0,0.00013972,2]
[332998065,1721737855105,-500.0,0.00013972,2]
[332998066,1721737855115,-500.0,0.00013972,2]
[332998067,1721737855126,-500.0,0.00013972,2]
[332998068,1721737855137,-500.0,0.00013972,2]
[332998069,1721737855147,-505.99,0.00013972,2]
[332998070,1721737855158,-500.0,0.00013972,2]
[332998071,1721737855168,-160.52958731,0.00013972,2]
[332998072,1721737855179,-500.0,0.00013972,2]
[332998073,1721737855190,-591.67,0.00013972,2]
[332998074,1721737855201,-239.54,0.00013972,2]
[332998075,1721737855211,-500.0,0.00013972,2]
[332998076,1721737855228,-500.0,0.00013972,2]
[332998077,1721737855239,-500.0,0.00013972,2]
[332998078,1721737855251,-500.0,0.00013972,2]
[332998079,1721737855262,-500.0,0.00013972,2]
[332998080,1721737855273,-515.91838857,0.00013972,2]
[332998081,1721737855284,-500.0,0.00013972,2]
[332998082,1721737855294,-500.0,0.00013972,2]
[332998083,1721737855306,-500.0,0.00013972,2]
[332998084,1721737855315,-500.0,0.00013972,2]
[332998085,1721737855326,-500.0,0.00013972,2]
[332998086,1721737855337,-500.0,0.00013972,2]
[332998087,1721737855348,-500.0,0.00013972,2]
[332998088,1721737855360,-500.0,0.00013972,2]
[332998089,1721737855371,-556.1,0.00013972,2]
[332998090,1721737855382,-500.0,0.00013972,2]
[332998091,1721737855392,-500.0,0.00013972,2]
[332998092,1721737855402,-500.0,0.00013972,2]
[332998093,1721737855413,-500.0,0.00013972,2]
[332998094,1721737855423,-500.0,0.00013972,2]
[332998095,1721737855433,-500.0,0.00013972,2]
[332998096,1721737855443,-500.0,0.00013972,2]
[332998097,1721737855454,-500.0,0.00013972,2]
[332998098,1721737855467,-500.0,0.00013972,2]
[332998099,1721737855478,-500.0,0.00013972,2]
[332998100,1721737855488,-500.0,0.00013972,2]
[332998101,1721737855498,-500.0,0.00013972,2]
[332998102,1721737855509,-500.0,0.00013972,2]
[332998103,1721737855519,-500.0,0.00013972,2]
[332998104,1721737855533,-500.0,0.00013972,2]
[332998105,1721737855543,-500.0,0.00013972,2]
[332998106,1721737855555,-500.0,0.00013972,2]
[332998107,1721737855566,-369.72,0.00013972,2]
[332998108,1721737855576,-505.95455861,0.00013972,2]
[332998109,1721737855587,-444.36987343,0.00013972,2]
[332998110,1721737855598,-500.0,0.00013972,2]
[332998111,1721737855608,-500.0,0.00013972,2]
[332998112,1721737855619,-500.0,0.00013972,2]
[332998113,1721737855629,-500.0,0.00013972,2]
[332998114,1721737855640,-500.0,0.00013972,2]
[332998115,1721737855650,-571.01,0.00013972,2]
[332998116,1721737855660,-500.0,0.00013972,2]
[332998117,1721737855670,-349.99094577,0.00013972,2]
[332998118,1721737855681,-500.0,0.00013972,2]
[332998119,1721737855692,-500.0,0.00013972,2]
[332998120,1721737855702,-500.0,0.00013972,2]
[332998121,1721737855715,-500.0,0.00013972,2]
[332998122,1721737855727,-449.66,0.00013972,2]
[332998123,1721737855737,-500.0,0.00013972,2]
[332998124,1721737855747,-500.0,0.00013972,2]
[332998125,1721737855765,-500.0,0.00013972,2]
[332998126,1721737855775,-391.06,0.00013972,2]
[332998127,1721737855785,-500.0,0.00013972,2]
[332998128,1721737855795,-500.0,0.00013972,2]
[332998129,1721737855806,-500.0,0.00013972,2]
[332998130,1721737855816,-500.0,0.00013972,2]
[332998131,1721737855826,-500.0,0.00013972,2]
[332998132,1721737855837,-500.0,0.00013972,2]
[332998133,1721737855847,-500.0,0.00013972,2]
[332998134,1721737855858,-500.0,0.00013972,2]
[332998135,1721737855870,-500.0,0.00013972,2]
[332998136,1721737855881,-500.0,0.00013972,2]
[332998137,1721737855892,-500.0,0.00013972,2]
[332998138,1721737855902,-500.0,0.00013972,2]
[332998139,1721737855913,-500.0,0.00013972,2]
[332998140,1721737855924,-500.0,0.00013972,2]
[332998141,1721737855935,-500.0,0.00013972,2]
[332998142,1721737855945,-500.0,0.00013972,2]
[332998143,1721737855955,-500.0,0.00013972,2]
[332998144,1721737855966,-500.0,0.00013972,2]
[332998145,1721737855976,-500.0,0.00013972,2]
[332998146,1721737855986,-500.0,0.00013972,2]
[332998147,1721737855996,-505.30694748,0.00013972,2]
[332998148,1721737856007,-500.0,0.00013972,2]
[332998149,1721737856017,-500.0,0.00013972,2]
[332998150,1721737856028,-500.0,0.00013972,2]
[332998151,1721737856038,-500.0,0.00013972,2]
[332998152,1721737856048,-500.0,0.00013972,2]
[332998153,1721737856058,-204.05,0.00013972,2]
[332998154,1721737856068,-500.0,0.00013972,2]
[332998155,1721737856078,-500.0,0.00013972,2]
[332998156,1721737856089,-500.0,0.00013972,2]
[332998157,1721737856099,-500.0,0.00013972,2]
[332998158,1721737856109,-500.0,0.00013972,2]
[332998159,1721737856119,-500.0,0.00013972,2]
[332998160,1721737856130,-223.55,0.00013972,2]
[332998161,1721737856140,-565.53406262,0.00013972,2]
[332998162,1721737856150,-500.0,0.00013972,2]
[332998163,1721737856160,-500.0,0.00013972,2]
[332998164,1721737856171,-500.0,0.00013972,2]
[332998165,1721737856182,-500.0,0.00013972,2]
[332998166,1721737856193,-500.0,0.00013972,2]
[332998167,1721737856203,-500.0,0.00013972,2]
[332998168,1721737856217,-500.0,0.00013972,2]
[332998169,1721737856228,-500.0,0.00013972,2]
[332998170,1721737856445,-500.0,0.00013972,2]
[332998171,1721737856455,-500.0,0.00013972,2]
[332998172,1721737856466,-500.0,0.00013972,2]
[332998173,1721737856476,-500.0,0.00013972,2]
[332998174,1721737856485,-500.0,0.00013972,2]
[332998175,1721737856495,-500.0,0.00013972,2]
[332998176,1721737856504,-500.0,0.00013972,2]
[332998177,1721737856515,-500.0,0.00013972,2]
[332998178,1721737856527,-500.0,0.00013972,2]
[332998179,1721737856536,-151.0,0.00013972,2]
[332998180,1721737856546,-500.0,0.00013972,2]
[332998181,1721737856555,-500.0,0.00013972,2]
[332998182,1721737856564,-500.0,0.00013972,2]
[332998183,1721737856574,-500.0,0.00013972,2]
[332998184,1721737856583,-500.0,0.00013972,2]
[332998185,1721737856593,-500.0,0.00013972,2]
[332998186,1721737856605,-500.0,0.00013972,2]
[332998187,1721737856616,-500.0,0.00013972,2]
[332998188,1721737856625,-296.75,0.00013972,2]
[332998189,1721737856635,-500.0,0.00013972,2]
[332998190,1721737856644,-500.0,0.00013972,2]
[332998191,1721737856653,-500.0,0.00013972,2]
[332998192,1721737856663,-500.0,0.00013972,2]
[332998193,1721737856673,-500.0,0.00013972,2]
[332998194,1721737856683,-500.0,0.00013972,2]
[332998195,1721737856693,-500.0,0.00013972,2]
[332998196,1721737856702,-500.0,0.00013972,2]
[332998197,1721737856712,-500.0,0.00013972,2]
[332998198,1721737856724,-500.0,0.00013972,2]
[332998199,1721737856735,-500.0,0.00013972,2]
[332998200,1721737856745,-500.0,0.00013972,2]
[332998201,1721737856754,-500.0,0.00013972,2]
[332998202,1721737856763,-500.0,0.00013972,2]
[332998203,1721737856773,-500.0,0.00013972,2]
[332998204,1721737856782,-500.0,0.00013972,2]
[332998205,1721737856792,-500.0,0.00013972,2]
[332998206,1721737856802,-500.0,0.00013972,2]
[332998207,1721737856812,-500.0,0.00013972,2]
[332998208,1721737856822,-500.0,0.00013972,2]
[332998209,1721737856833,-500.0,0.00013972,2]
[332998210,1721737856844,-500.0,0.00013972,2]
[332998211,1721737856864,-500.0,0.00013972,2]
[332998212,1721737856876,-500.0,0.00013972,2]
[332998213,1721737856887,-500.0,0.00013972,2]
[332998214,1721737856898,-500.0,0.00013972,2]
[332998215,1721737856908,-500.0,0.00013972,2]
[332998216,1721737856919,-500.0,0.00013972,2]
[332998217,1721737856930,-500.0,0.00013972,2]
[332998218,1721737856940,-500.0,0.00013972,2]
[332998219,1721737856950,-500.0,0.00013972,2]
[332998220,1721737856961,-500.0,0.00013972,2]
[332998221,1721737856975,-500.0,0.00013972,2]
[332998222,1721737856985,-500.0,0.00013972,2]
[332998223,1721737856995,-500.0,0.00013972,2]
[332998224,1721737857005,-265.09387023,0.00013972,2]
[332998225,1721737857015,-500.0,0.00013972,2]
[332998226,1721737857025,-500.0,0.00013972,2]
[332998227,1721737857035,-500.0,0.00013972,2]
[332998228,1721737857045,-500.0,0.00013972,2]
[332998229,1721737857054,-500.0,0.00013972,2]
[332998230,1721737857064,-500.0,0.00013972,2]
[332998231,1721737857075,-500.0,0.00013972,2]
[332998232,1721737857085,-500.0,0.00013972,2]
[332998233,1721737857095,-575.73674924,0.00013972,2]
[332998234,1721737857105,-500.0,0.00013972,2]
[332998235,1721737857114,-500.0,0.00013972,2]
[332998236,1721737857125,-500.0,0.00013972,2]
[332998237,1721737857135,-500.0,0.00013972,2]
[332998238,1721737857145,-500.0,0.00013972,2]
[332998239,1721737857155,-500.0,0.00013972,2]
[332998240,1721737857165,-500.0,0.00013972,2]
[332998241,1721737857176,-500.0,0.00013972,2]
[332998242,1721737857187,-151.0,0.00013972,2]
[332998243,1721737857197,-500.0,0.00013972,2]
[332998244,1721737857207,-500.0,0.00013972,2]
[332998245,1721737857219,-500.0,0.00013972,2]
[332998246,1721737857230,-500.0,0.00013972,2]
[332998247,1721737857240,-500.0,0.00013972,2]
[332998248,1721737857250,-500.0,0.00013972,2]
[332998249,1721737857262,-500.0,0.00013972,2]
[332998250,1721737857272,-500.0,0.00013972,2]
[332998251,1721737857282,-50.18081892,0.00013972,2]
[332998252,1721737857551,-629.7,0.00010959,2]
[332998253,1721737857565,-623.797104,0.00013699,2]
[332998254,1721737857574,-410.90839925,0.00013699,2]
[332998255,1721737990988,150.24,0.000221,30]
[332998335,1721739032304,-300.0,8.197e-05,2]
[332998337,1721739032314,-300.0,8.197e-05,2]
[332998339,1721739032323,-5045.23838886,8.198e-05,2]
[332998414,1721739037955,-13858.75168954,8.198e-05,2]
[332998415,1721739037966,-18903.9900784,8.281e-05,2]
[332998416,1721739037975,-24900.0,8.467e-05,2]
[332998417,1721739037985,-191.41538237,8.844e-05,2]
[332998418,1721739037994,-420.0,9.017e-05,2]
[332998419,1721739038004,-420.0,9.017e-05,2]
[332998420,1721739038013,-250.0,9.035e-05,2]
[332998421,1721739038022,-587.0,9.918e-05,2]
[332998422,1721739038032,-587.0,9.918e-05,2]
[332998423,1721739038041,-154.88678402,9.999e-05,2]
[332998424,1721739038051,-266.45562097,9.999e-05,2]
[332998425,1721739038061,-154.84019416,9.999e-05,2]
[332998426,1721739038070,-288.23560711,9.999e-05,2]
[332998427,1721739038080,-266.82691479,9.999e-05,2]
[332998428,1721739038090,-182.73915488,9.999e-05,2]
[332998429,1721739038099,-309.52024362,9.999e-05,2]
[332998430,1721739038108,-224.50094082,9.999e-05,2]
[332998431,1721739038117,-157.64183891,9.999e-05,2]
[332998432,1721739038127,-154.79103211,9.999e-05,2]
[332998433,1721739038138,-375.64530467,9.999e-05,2]
[332998434,1721739038147,-533.38063441,9.999e-05,2]
[332998435,1721739038156,-160.00381439,9.999e-05,2]
[332998436,1721739038165,-968.14358809,9.999e-05,2]
[332998437,1721739038176,-204.48123878,9.999e-05,2]
[332998438,1721739038187,-156.34749411,9.999e-05,2]
[332998439,1721739038197,-154.76012181,9.999e-05,2]
[332998440,1721739038208,-154.76012181,9.999e-05,2]
[332998441,1721739038219,-493.72845005,9.999e-05,2]
[332998442,1721739038228,-204.43824148,0.0001,2]
[332998443,1721739038237,-267.2136378,0.0001,2]
[332998444,1721739038247,-250.0,0.00010439,2]
[332998445,1721739038256,-250.0,0.00010468,2]
[332998446,1721739038265,-250.0,0.00010496,2]
[332998447,1721739038275,-250.0,0.00010525,2]
[332998448,1721739038284,-250.0,0.00010553,2]
[332998449,1721739038294,-250.0,0.00010582,2]
[332998450,1721739038303,-250.0,0.00010611,2]
[332998451,1721739038313,-250.0,0.00010639,2]
[332998452,1721739038322,-250.0,0.00010668,2]
[332998453,1721739038331,-250.0,0.00010697,2]
[332998454,1721739038342,-250.0,0.00010725,2]
[332998455,1721739038354,-250.0,0.00010754,2]
[332998456,1721739038364,-250.0,0.00010782,2]
[332998457,1721739038375,-250.0,0.00010811,2]
[332998458,1721739038386,-250.0,0.0001084,2]
[332998459,1721739038395,-250.0,0.00010868,2]
[332998460,1721739038404,-250.0,0.00010897,2]
[332998461,1721739038413,-823.0,0.0001091,2]
[332998462,1721739038423,-823.0,0.0001091,2]
[332998463,1721739038432,-250.0,0.00010926,2]
[332998464,1721739038441,-250.0,0.00010954,2]
[332998465,1721739038451,-407.08,0.00010959,2]
[332998466,1721739038460,-339.23,0.00010959,2]
[332998467,1721739038470,-282.69,0.00010959,2]
[332998468,1721739038480,-235.58,0.00010959,2]
[332998469,1721739038490,-196.32,0.00010959,2]
[332998470,1721739038500,-163.6,0.00010959,2]
[332998471,1721739038509,-250.0,0.00010983,2]
[332998472,1721739038518,-521.5906284,0.00011441,2]
[332998473,1721739038528,-1152.0,0.00012001,2]
[332998474,1721739038537,-809.0,0.00012001,2]
[332998475,1721739038547,-2000.0,0.00012895,2]
[332998476,1721739038556,-3192.78175564,0.00012936,2]
[332998477,1721739038566,-1613.0,0.00013201,2]
[332998478,1721739038576,-113005.398318,0.00013291,2]
[332998479,1721739038585,-16721.5764266,0.00013325,2]
[332998480,1721739038595,-16721.57642657,0.00013393,2]
[332998481,1721739038605,-200.0,0.00013425,2]
[332998482,1721739038615,-16721.57642657,0.00013462,2]
[332998483,1721739038624,-16721.57642657,0.0001353,2]
[332998484,1721739038634,-16515.30336841,0.0001358,2]
[332998485,1721739038643,-16721.57642657,0.00013598,2]
[332998486,1721739038655,-113005.398318,0.00013624,2]
[332998487,1721739038667,-226010.796635,0.00013688,2]
[332998488,1721739038677,-299.0,0.00013698,2]
[332998489,1721739038687,-500.0,0.00013698,2]
[332998490,1721739038697,-500.0,0.00013698,2]
[332998491,1721739038710,-2807.47,0.00013698,2]
[332998492,1721739038720,-522.38,0.00013698,2]
[332998493,1721739038731,-500.0,0.00013698,2]
[332998494,1721739038741,-500.0,0.00013698,2]
[332998495,1721739038751,-500.0,0.00013698,2]
[332998496,1721739038763,-500.0,0.00013698,2]
[332998497,1721739038773,-500.0,0.00013698,2]
[332998498,1721739038784,-500.0,0.00013698,2]
[332998499,1721739038793,-717.85,0.00013698,2]
[332998500,1721739038803,-500.0,0.00013698,2]
[332998501,1721739038812,-500.0,0.00013698,2]
[332998502,1721739038822,-500.0,0.00013698,2]
[332998503,1721739038835,-3969.57,0.00013698,2]
[332998504,1721739038845,-500.0,0.00013698,2]
[332998505,1721739038854,-500.0,0.00013698,2]
[332998506,1721739038864,-500.0,0.00013698,2]
[332998507,1721739038875,-1820.11,0.00013698,2]
[332998508,1721739038886,-500.0,0.00013698,2]
[332998509,1721739038898,-500.0,0.00013698,2]
[332998510,1721739038911,-500.0,0.00013698,2]
[332998511,1721739038922,-500.0,0.00013698,2]
[332998512,1721739038932,-500.0,0.00013698,2]
[332998513,1721739038944,-500.0,0.00013698,2]
[332998514,1721739038957,-500.0,0.00013698,2]
[332998515,1721739038969,-500.0,0.00013698,2]
[332998516,1721739038979,-500.0,0.00013698,2]
[332998517,1721739038989,-618.48,0.00013698,2]
[332998518,1721739038999,-500.0,0.00013698,2]
[332998519,1721739039008,-1126.78,0.00013698,2]
[332998520,1721739039020,-500.0,0.00013698,2]
[332998521,1721739039031,-500.0,0.00013698,2]
[332998522,1721739039043,-500.0,0.00013698,2]
[332998523,1721739039055,-500.0,0.00013698,2]
[332998524,1721739039065,-500.0,0.00013698,2]
[332998525,1721739039075,-500.0,0.00013698,2]
[332998526,1721739039085,-500.0,0.00013698,2]
[332998527,1721739039095,-500.0,0.00013698,2]
[332998528,1721739039105,-500.0,0.00013698,2]
[332998529,1721739039115,-500.0,0.00013698,2]
[332998530,1721739039125,-500.0,0.00013698,2]
[332998531,1721739039136,-500.0,0.00013698,2]
[332998532,1721739039145,-511.8009732,0.00013698,2]
[332998533,1721739039155,-2813.29,0.00013698,2]
[332998534,1721739039165,-500.0,0.00013698,2]
[332998535,1721739039174,-500.0,0.00013698,2]
[332998536,1721739039185,-500.0,0.00013698,2]
[332998537,1721739039195,-500.0,0.00013698,2]
[332998538,1721739039204,-500.0,0.00013698,2]
[332998539,1721739039214,-500.0,0.00013698,2]
[332998540,1721739039223,-3938.55,0.00013698,2]
[332998541,1721739039233,-500.0,0.00013698,2]
[332998542,1721739039243,-500.0,0.00013698,2]
[332998543,1721739039253,-500.0,0.00013698,2]
[332998544,1721739039263,-500.0,0.00013698,2]
[332998545,1721739039273,-500.0,0.00013698,2]
[332998546,1721739039283,-500.0,0.00013698,2]
[332998547,1721739039292,-500.0,0.00013698,2]
[332998548,1721739039302,-787.77,0.00013698,2]
[332998549,1721739039311,-500.0,0.00013698,2]
[332998550,1721739039321,-500.0,0.00013698,2]
[332998551,1721739039330,-500.0,0.00013698,2]
[332998552,1721739039339,-500.0,0.00013698,2]
[332998553,1721739039349,-500.0,0.00013698,2]
[332998554,1721739039359,-530.31,0.00013698,2]
[332998555,1721739039368,-500.0,0.00013698,2]
[332998556,1721739039378,-500.0,0.00013698,2]
[332998557,1721739039389,-500.0,0.00013698,2]
[332998558,1721739039399,-500.0,0.00013698,2]
[332998559,1721739039408,-500.0,0.00013698,2]
[332998560,1721739039418,-500.0,0.00013698,2]
[332998561,1721739039427,-500.0,0.00013698,2]